[Event "Czech Open-E Teams 2022"]
[Site "Pardubice"]
[Date "2022.07.14"]
[Round "1.36"]
[White "Rodshtein, Tereza"]
[Black "Kijonka, Ondrej"]
[Result "1-0"]
[ECO "B23"]
[WhiteElo "2169"]
[BlackElo "1683"]
[Annotator "ChessBase"]
[PlyCount "81"]
[EventDate "2022.07.14"]
[EventType "team-tourn"]
[EventCountry "CZE"]
[SourceTitle "playchess.com"]
[Source "ChessBase"]
[SourceQuality "1"]
[TimeControl "5400+30"]

1. e4 {[%emt 0:00:03]} c5 2. Nc3 {[%emt 0:00:21]} e6 {[%emt 0:00:46]} 3. g3 {[%emt 0:00:32]} Nc6 {[%emt 0:01:30]} 4. Bg2 {[%emt 0:00:06]} Nf6 {[%emt 0:00:14]} 5. d3 {[%emt 0:00:31]} Be7 {[%emt 0:00:06]} 6. f4 {[%emt 0:00:33]} d6 {[%emt 0:00:16]} 7. Nf3 {[%emt 0:00:10]} a6 {[%emt 0:01:05]} 8. O-O {[%emt 0:00:49]} Qc7 {[%emt 0:00:52]} 9. h3 {[%emt 0:04:22]} e5 {[%emt 0:06:28]} 10. g4 {[%emt 0:08:25]} h6 {[%emt 0:01:58]} 11. Nd5 {[%emt 0:06:03]} Nxd5 {[%emt 0:02:17]} 12. exd5 {[%emt 0:00:07]} Nd4 {[%emt 0:00:48]} 13. Ne1 {[%emt 0:02:53]} Qb6 {[%emt 0:09:24]} 14. c3 {[%emt 0:01:53]} Nb5 {[%emt 0:00:19]} 15. Qf3 {[%emt 0:02:45]} f6 {[%emt 0:03:03]} 16. Nc2 {[%emt 0:01:17]} Bd7 {[%emt 0:06:38]} 17. Ne3 {[%emt 0:01:18]} O-O-O {[%emt 0:09:39]} 18. a4 {[%emt 0:01:57]} Na7 {[%emt 0:00:30]} 19. Nc4 {[%emt 0:08:29]} Qc7 {[%emt 0:00:06]} 20. b4 {[%emt 0:00:42]} Kb8 {[%emt 0:01:18]} 21. bxc5 {[%emt 0:01:03]} dxc5 {[%emt 0:01:12]} 22. d6 {[%emt 0:00:30]} Bxd6 {[%emt 0:11:41]} 23. Nxd6 {[%emt 0:00:07]} Bc6 {[%emt 0:00:15]} 24. Ne4 {[%emt 0:00:08]} Qd7 {[%emt 0:10:28]} 25. Nxc5 {[%emt 0:02:29]} Bxf3 {[%emt 0:00:13]} 26. Nxd7+ {[%emt 0:00:07]} Rxd7 {[%emt 0:00:04]} 27. Rxf3 {[%emt 0:00:11]} Rhd8 {[%emt 0:01:07]} 28. fxe5 {[%emt 0:01:36]} fxe5 {[%emt 0:01:31]} 29. d4 {[%emt 0:02:28]} exd4 {[%emt 0:02:31]} 30. cxd4 {[%emt 0:00:27]} Nc6 {[%emt 0:07:25]} 31. Bf4+ {[%emt 0:01:04]} Ka8 {[%emt 0:01:11]} 32. Be5 {[%emt 0:01:10]} Nxd4 {[%emt 0:02:35]} 33. Bxd4 {[%emt 0:00:31]} Rxd4 {[%emt 0:00:07]} 34. Rf7 {[%emt 0:00:06]} R4d7 {[%emt 0:00:18]} 35. Raf1 {[%emt 0:00:59]} Kb8 {[%emt 0:01:10]} 36. Kh2 {[%emt 0:00:35]} Kc7 {[%emt 0:02:13]} 37. a5 {[%emt 0:00:22]} Kb8 {[%emt 0:07:02]} 38. Kg3 {[%emt 0:00:12]} Rd3+ {[%emt 0:00:30]} 39. Kh4 {[%emt 0:00:45]} R8d7 {[%emt 0:01:21]} 40. Rxd7 {[%emt 0:01:12]} Rxd7 {[%emt 0:00:05]} 41. Kh5 {[%emt 0:00:16]} 1-0

[Event "Czech Open-E Teams 2022"]
[Site "Pardubice"]
[Date "2022.07.14"]
[Round "1.37"]
[White "Slovak, Kilian"]
[Black "Hlozek, David"]
[Result "1-0"]
[ECO "B94"]
[WhiteElo "2321"]
[BlackElo "2004"]
[Annotator "ChessBase"]
[PlyCount "93"]
[EventDate "2022.07.14"]
[EventType "team-tourn"]
[EventCountry "CZE"]
[SourceTitle "playchess.com"]
[Source "ChessBase"]
[SourceQuality "1"]
[TimeControl "5400+30"]

1. e4 c5 {[%emt 0:00:00]} 2. Nf3 {[%emt 0:00:50]} d6 {[%emt 0:00:00]} 3. d4 {[%emt 0:00:19]} cxd4 {[%emt 0:00:00]} 4. Nxd4 {[%emt 0:00:00]} Nf6 {[%emt 0:00:00]} 5. Nc3 {[%emt 0:00:00]} a6 {[%emt 0:00:03]} 6. Bg5 {[%emt 0:01:52]} Nbd7 {[%emt 0:00:04]} 7. Qe2 {[%emt 0:01:09]} h6 {[%emt 0:01:56]} 8. Bh4 {[%emt 0:00:38]} g6 {[%emt 0:01:15]} 9. O-O-O {[%emt 0:02:02]} e5 {[%emt 0:05:57]} 10. Nb3 {[%emt 0:00:46]} Qc7 {[%emt 0:01:01]} 11. f3 {[%emt 0:00:57]} b5 12. a3 {[%emt 0:05:31]} Bb7 {[%emt 0:05:47]} 13. g4 {[%emt 0:00:50]} Be7 {[%emt 0:03:57]} 14. Qd2 {[%emt 0:02:09]} Rc8 {[%emt 0:03:21]} 15. Bf2 {[%emt 0:01:20]} Nb6 {[%emt 0:04:36]} 16. Na5 {[%emt 0:03:09]} Ba8 {[%emt 0:09:40]} 17. h4 {[%emt 0:02:06]} d5 {[%emt 0:15:26]} 18. g5 {[%emt 0:25:51]} d4 {[%emt 0:21:09]} 19. Nxb5 {[%emt 0:05:30]} axb5 {[%emt 0:00:34]} 20. gxf6 {[%emt 0:00:05]} Bxf6 {[%emt 0:01:23]} 21. Bxb5+ {[%emt 0:00:18]} Kf8 {[%emt 0:01:33]} 22. Kb1 {[%emt 0:00:13]} Kg7 {[%emt 0:04:01]} 23. Bg3 {[%emt 0:03:37]} Qc5 {[%emt 0:04:11]} 24. Bd3 {[%emt 0:00:25]} Na4 {[%emt 0:02:35]} 25. Qb4 {[%emt 0:01:58]} Nc3+ {[%emt 0:01:15]} 26. Ka1 {[%emt 0:04:55]} Nxd1 {[%emt 0:00:07]} 27. Rxd1 {[%emt 0:00:11]} Qxb4 {[%emt 0:02:45]} 28. axb4 {[%emt 0:00:00]} Bc6 {[%emt 0:04:55]} 29. Kb1 {[%emt 0:02:09]} Rhd8 {[%emt 0:04:50]} 30. Nc4 {[%emt 0:05:29]} Bb5 {[%emt 0:01:45]} 31. Nxe5 {[%emt 0:00:24]} Bxd3 {[%emt 0:00:52]} 32. Nxd3 {[%emt 0:00:00]} Rc4 {[%emt 0:00:42]} 33. Rc1 {[%emt 0:02:44]} Ra8 {[%emt 0:00:32]} 34. Be1 {[%emt 0:04:55]} Rc7 {[%emt 0:00:13]} 35. Nc5 {[%emt 0:01:13]} Be7 {[%emt 0:00:46]} 36. Nb3 {[%emt 0:00:06]} Rb7 {[%emt 0:00:25]} 37. c3 {[%emt 0:02:01]} dxc3 38. bxc3 {[%emt 0:00:00]} Rb5 {[%emt 0:00:59]} 39. c4 {[%emt 0:01:51]} Rh5 {[%emt 0:00:29]} 40. c5 {[%emt 0:00:00]} Bxh4 {[%emt 0:00:31]} 41. Bxh4 {[%emt 0:00:25]} Rxh4 42. c6 Rh2 {[%emt 0:00:20]} 43. Na5 {[%emt 0:02:51]} Rd8 {[%emt 0:00:46]} 44. c7 {[%emt 0:00:45]} Rd4 {[%emt 0:00:36]} 45. Nc4 {[%emt 0:00:04]} Rd3 {[%emt 0:00:15]} 46. c8=Q {[%emt 0:00:44]} Rb3+ {[%emt 0:00:43]} 47. Ka1 {[%emt 0:00:01]} 1-0

[Event "Czech Open-E Teams 2022"]
[Site "Pardubice"]
[Date "2022.07.14"]
[Round "1.38"]
[White "Reljic, Michael"]
[Black "Brejnik, Gustav"]
[Result "0-1"]
[ECO "B13"]
[WhiteElo "1977"]
[BlackElo "2292"]
[Annotator "ChessBase"]
[PlyCount "72"]
[EventDate "2022.07.14"]
[EventType "team-tourn"]
[EventCountry "CZE"]
[SourceTitle "playchess.com"]
[Source "ChessBase"]
[SourceQuality "1"]
[TimeControl "5400+30"]

1. e4 {[%emt 0:00:03]} c6 {[%emt 0:00:05]} 2. d4 {[%emt 0:00:05]} d5 {[%emt 0:00:06]} 3. exd5 {[%emt 0:00:08]} cxd5 {[%emt 0:00:04]} 4. Nf3 {[%emt 0:00:41]} Nc6 {[%emt 0:01:56]} 5. Bd3 {[%emt 0:01:12]} Bg4 {[%emt 0:00:37]} 6. c3 {[%emt 0:00:15]} Qc7 {[%emt 0:01:09]} 7. Nbd2 {[%emt 0:01:43]} e6 {[%emt 0:00:31]} 8. O-O {[%emt 0:04:42]} Bd6 {[%emt 0:00:24]} 9. Qc2 {[%emt 0:05:18]} Nf6 {[%emt 0:02:18]} 10. b4 {[%emt 0:09:57]} Rc8 11. Qa4 O-O {[%emt 0:10:52]} 12. h3 {[%emt 0:11:51]} Bh5 {[%emt 0:01:27]} 13. Ba3 {[%emt 0:05:43]} a6 {[%emt 0:15:25]} 14. b5 {[%emt 0:10:24]} axb5 {[%emt 0:04:08]} 15. Bxb5 {[%emt 0:01:11]} Ra8 {[%emt 0:00:54]} 16. Bxd6 {[%emt 0:00:19]} Qxd6 {[%emt 0:00:04]} 17. Qc2 {[%emt 0:04:13]} Ra3 {[%emt 0:02:45]} 18. Rfb1 {[%emt 0:06:13]} Bg6 {[%emt 0:07:50]} 19. Bd3 {[%emt 0:02:40]} Bxd3 {[%emt 0:02:57]} 20. Qxd3 {[%emt 0:00:02]} Nb4 {[%emt 0:00:10]} 21. Rxb4 {[%emt 0:08:09]} Qxb4 {[%emt 0:00:25]} 22. cxb4 {[%emt 0:00:02]} Rxd3 {[%emt 0:00:04]} 23. Nb3 {[%emt 0:00:20]} Rc3 {[%emt 0:06:54]} 24. Nc5 {[%emt 0:03:42]} b6 {[%emt 0:00:42]} 25. Na4 {[%emt 0:02:06]} Ra3 {[%emt 0:02:18]} 26. Nb2 {[%emt 0:01:59]} Rfa8 {[%emt 0:00:54]} 27. Kf1 {[%emt 0:01:05]} Rxa2 {[%emt 0:00:39]} 28. Rxa2 {[%emt 0:00:09]} Rxa2 {[%emt 0:00:04]} 29. Nd3 {[%emt 0:00:17]} Ne4 {[%emt 0:01:28]} 30. g3 {[%emt 0:01:32]} f6 {[%emt 0:02:15]} 31. Ke1 Ra1+ {[%emt 0:00:13]} 32. Ke2 {[%emt 0:00:45]} Ra2+ 33. Ke1 {[%emt 0:00:14]} Kf7 {[%emt 0:00:35]} 34. Kf1 {[%emt 0:03:12]} Ke7 {[%emt 0:00:41]} 35. Ng1 {[%emt 0:00:55]} Rd2 {[%emt 0:00:14]} 36. Nf4 {[%emt 0:01:17]} Rxf2+ {[%emt 0:00:24]} 0-1

[Event "Czech Open-E Teams 2022"]
[Site "Pardubice"]
[Date "2022.07.14"]
[Round "1.39"]
[White "Parizek, Vojtech"]
[Black "Strnad, Michael"]
[Result "1-0"]
[ECO "B27"]
[WhiteElo "2217"]
[BlackElo "1855"]
[Annotator "ChessBase"]
[PlyCount "59"]
[EventDate "2022.07.14"]
[EventType "team-tourn"]
[EventCountry "CZE"]
[SourceTitle "playchess.com"]
[Source "ChessBase"]
[SourceQuality "1"]
[TimeControl "5400+30"]

1. e4 {[%emt 0:00:04]} c5 {[%emt 0:00:07]} 2. Nf3 {[%emt 0:00:12]} g6 {[%emt 0:00:05]} 3. d4 {[%emt 0:00:39]} cxd4 {[%emt 0:00:09]} 4. Nxd4 {[%emt 0:00:06]} Bg7 {[%emt 0:00:05]} 5. Nc3 {[%emt 0:00:07]} Nc6 {[%emt 0:00:04]} 6. Nde2 {[%emt 0:00:05]} Nf6 {[%emt 0:00:10]} 7. g3 {[%emt 0:00:09]} d6 {[%emt 0:00:42]} 8. Bg2 {[%emt 0:01:48]} O-O {[%emt 0:00:15]} 9. h3 {[%emt 0:00:27]} Bd7 {[%emt 0:00:16]} 10. O-O {[%emt 0:00:19]} Qc8 {[%emt 0:00:08]} 11. Kh2 {[%emt 0:01:03]} h5 {[%emt 0:02:25]} 12. Be3 {[%emt 0:07:38]} Ne5 {[%emt 0:01:31]} 13. b3 {[%emt 0:01:06]} Neg4+ {[%emt 0:02:09]} 14. Kg1 {[%emt 0:12:28]} Nxe3 {[%emt 0:00:29]} 15. fxe3 {[%emt 0:00:03]} Bxh3 {[%emt 0:00:19]} 16. Qd3 {[%emt 0:03:26]} Bxg2 {[%emt 0:02:13]} 17. Kxg2 {[%emt 0:00:48]} Qe6 {[%emt 0:05:33]} 18. Nd4 {[%emt 0:11:45]} Qe5 {[%emt 0:00:19]} 19. Nf3 {[%emt 0:00:56]} Qc5 {[%emt 0:00:22]} 20. Rac1 {[%emt 0:02:16]} Rac8 {[%emt 0:01:33]} 21. Nd1 {[%emt 0:01:39]} d5 {[%emt 0:03:48]} 22. e5 {[%emt 0:05:18]} Ne4 {[%emt 0:04:54]} 23. c4 {[%emt 0:02:02]} Qa3 {[%emt 0:02:56]} 24. Rc2 {[%emt 0:06:36]} Nc5 {[%emt 0:00:27]} 25. Qd2 {[%emt 0:01:59]} dxc4 {[%emt 0:01:02]} 26. Rxc4 {[%emt 0:00:32]} Rfd8 {[%emt 0:02:20]} 27. Qc2 {[%emt 0:03:19]} a5 {[%emt 0:38:49]} 28. Nf2 {[%emt 0:10:19]} b6 {[%emt 0:02:51]} 29. Ne4 {[%emt 0:03:43]} Rb8 {[%emt 0:02:52]} 30. Nxc5 {[%emt 0:01:37]} 1-0

[Event "Czech Open-E Teams 2022"]
[Site "Pardubice"]
[Date "2022.07.14"]
[Round "1.40"]
[White "Nechutny, Michal"]
[Black "Formanek, Martin"]
[Result "1-0"]
[ECO "B22"]
[WhiteElo "1757"]
[BlackElo "2233"]
[Annotator "ChessBase"]
[PlyCount "71"]
[EventDate "2022.07.14"]
[EventType "team-tourn"]
[EventCountry "CZE"]
[SourceTitle "playchess.com"]
[Source "ChessBase"]
[SourceQuality "1"]
[TimeControl "5400+30"]

1. e4 {[%emt 0:00:29]} c5 {[%emt 0:00:05]} 2. c3 {[%emt 0:00:34]} Nf6 {[%emt 0:00:18]} 3. e5 {[%emt 0:00:35]} Nd5 {[%emt 0:00:05]} 4. d4 {[%emt 0:00:04]} cxd4 {[%emt 0:00:12]} 5. Nf3 {[%emt 0:01:24]} e6 {[%emt 0:00:12]} 6. cxd4 {[%emt 0:00:29]} b6 {[%emt 0:00:09]} 7. Bc4 {[%emt 0:01:09]} Ba6 {[%emt 0:01:09]} 8. Nbd2 {[%emt 0:04:51]} Bxc4 {[%emt 0:12:49]} 9. Nxc4 {[%emt 0:00:08]} Qc8 {[%emt 0:00:30]} 10. Qe2 {[%emt 0:13:36]} b5 {[%emt 0:03:24]} 11. Ne3 {[%emt 0:07:42]} Qb7 {[%emt 0:00:14]} 12. O-O {[%emt 0:07:10]} Be7 {[%emt 0:00:50]} 13. Nxd5 {[%emt 0:13:29]} Qxd5 {[%emt 0:00:07]} 14. Rd1 {[%emt 0:00:40]} Nc6 {[%emt 0:02:20]} 15. Be3 {[%emt 0:05:21]} O-O {[%emt 0:02:57]} 16. Nd2 {[%emt 0:06:50]} f6 {[%emt 0:05:09]} 17. Nb3 {[%emt 0:04:46]} f5 {[%emt 0:09:59]} 18. f4 {[%emt 0:03:59]} Rfc8 {[%emt 0:04:07]} 19. Nc5 {[%emt 0:02:34]} Rab8 {[%emt 0:03:14]} 20. b3 {[%emt 0:05:14]} a5 {[%emt 0:01:14]} 21. Rac1 {[%emt 0:01:55]} Rd8 {[%emt 0:03:46]} 22. Bf2 {[%emt 0:04:47]} g6 {[%emt 0:13:25]} 23. h4 h6 24. g4 {[%emt 0:06:38]} Kh7 {[%emt 0:04:25]} 25. g5 {[%emt 0:02:17]} h5 {[%emt 0:00:25]} 26. Na6 {[%emt 0:01:54]} Rb7 {[%emt 0:01:47]} 27. Nc5 {[%emt 0:00:27]} Rb6 {[%emt 0:01:42]} 28. Rc3 {[%emt 0:01:41]} Kg7 29. Rcd3 {[%emt 0:02:44]} Nb4 {[%emt 0:04:35]} 30. R3d2 {[%emt 0:00:19]} Nc6 {[%emt 0:02:07]} 31. Rd3 {[%emt 0:00:25]} Kf7 {[%emt 0:00:48]} 32. a3 {[%emt 0:00:38]} d6 {[%emt 0:02:40]} 33. exd6 {[%emt 0:00:31]} Bxd6 34. Re1 Re8 {[%emt 0:02:55]} 35. Nd7 {[%emt 0:01:06]} Rb7 {[%emt 0:04:05]} 36. Nf6 {[%emt 0:00:18]} 1-0

[Event "Czech Open-E Teams 2022"]
[Site "Pardubice"]
[Date "2022.07.14"]
[Round "1.41"]
[White "Gaj, Milos"]
[Black "Petr, Martin"]
[Result "0-1"]
[ECO "D96"]
[WhiteElo "1916"]
[BlackElo "2500"]
[Annotator "ChessBase"]
[PlyCount "86"]
[EventDate "2022.07.14"]
[EventType "team-tourn"]
[EventCountry "CZE"]
[SourceTitle "playchess.com"]
[Source "ChessBase"]
[SourceQuality "1"]
[TimeControl "5400+30"]

1. d4 {[%emt 0:00:05]} Nf6 {[%emt 0:00:08]} 2. Nf3 {[%emt 0:00:10]} g6 {[%emt 0:00:13]} 3. c4 {[%emt 0:00:14]} Bg7 {[%emt 0:00:11]} 4. Nc3 {[%emt 0:00:52]} d5 {[%emt 0:00:07]} 5. Qb3 {[%emt 0:00:42]} dxc4 {[%emt 0:01:25]} 6. Qxc4 {[%emt 0:00:11]} Na6 {[%emt 0:00:38]} 7. e4 {[%emt 0:00:54]} c5 {[%emt 0:00:11]} 8. dxc5 {[%emt 0:07:01]} O-O {[%emt 0:04:52]} 9. Bf4 {[%emt 0:03:00]} Qa5 {[%emt 0:05:38]} 10. Nd2 {[%emt 0:06:21]} Qxc5 {[%emt 0:03:57]} 11. Nb3 {[%emt 0:08:14]} Qxc4 {[%emt 0:04:52]} 12. Bxc4 {[%emt 0:00:14]} Bd7 {[%emt 0:05:54]} 13. Rd1 {[%emt 0:05:05]} Rfc8 {[%emt 0:04:19]} 14. Bxa6 {[%emt 0:09:23]} bxa6 {[%emt 0:00:06]} 15. Be5 {[%emt 0:01:07]} Be6 {[%emt 0:04:21]} 16. Nd4 {[%emt 0:08:16]} Nxe4 {[%emt 0:09:08]} 17. Bxg7 {[%emt 0:05:38]} Nxc3 {[%emt 0:00:07]} 18. bxc3 {[%emt 0:00:23]} Kxg7 {[%emt 0:00:05]} 19. Nxe6+ {[%emt 0:00:11]} fxe6 {[%emt 0:00:04]} 20. Kd2 {[%emt 0:01:30]} Rc5 {[%emt 0:02:15]} 21. Rc1 {[%emt 0:04:57]} Rd8+ {[%emt 0:01:34]} 22. Kc2 {[%emt 0:02:57]} Rdc8 {[%emt 0:01:09]} 23. Kb3 {[%emt 0:01:09]} Rb5+ {[%emt 0:00:13]} 24. Kc2 {[%emt 0:03:49]} Ra5 {[%emt 0:00:44]} 25. Kb2 {[%emt 0:00:13]} Rc4 {[%emt 0:02:26]} 26. Rhd1 {[%emt 0:03:45]} Rca4 {[%emt 0:00:08]} 27. Ra1 {[%emt 0:00:19]} Kf6 {[%emt 0:01:02]} 28. Rd4 {[%emt 0:01:44]} Rxd4 {[%emt 0:01:59]} 29. cxd4 {[%emt 0:01:16]} e5 {[%emt 0:00:26]} 30. Rd1 {[%emt 0:02:37]} e4 {[%emt 0:01:08]} 31. Kb3 {[%emt 0:03:42]} Rg5 {[%emt 0:00:39]} 32. g3 {[%emt 0:00:23]} Rb5+ {[%emt 0:02:52]} 33. Kc3 {[%emt 0:00:16]} Ke6 {[%emt 0:00:51]} 34. a4 {[%emt 0:06:08]} Rf5 {[%emt 0:00:53]} 35. Rd2 {[%emt 0:01:34]} Kd5 {[%emt 0:00:40]} 36. Kb4 {[%emt 0:00:28]} Rf6 {[%emt 0:01:45]} 37. Rc2 {[%emt 0:05:38]} Kxd4 {[%emt 0:00:21]} 38. Rd2+ {[%emt 0:00:07]} Ke5 {[%emt 0:00:08]} 39. Rd7 {[%emt 0:00:13]} Rxf2 {[%emt 0:00:50]} 40. Rxe7+ {[%emt 0:00:20]} Kd4 {[%emt 0:00:06]} 41. Rd7+ {[%emt 0:00:28]} Ke3 {[%emt 0:00:07]} 42. Rxh7 {[%emt 0:01:21]} Rf6 {[%emt 0:01:20]} 43. Rxa7 {[%emt 0:01:29]} Kf2 {[%emt 0:00:06]} 0-1

[Event "Czech Open-E Teams 2022"]
[Site "Pardubice"]
[Date "2022.07.14"]
[Round "1.42"]
[White "Neuman, Petr"]
[Black "Rada, Miroslav"]
[Result "1-0"]
[ECO "D35"]
[WhiteElo "2378"]
[BlackElo "1897"]
[Annotator "ChessBase"]
[PlyCount "49"]
[EventDate "2022.07.14"]
[EventType "team-tourn"]
[EventCountry "CZE"]
[SourceTitle "playchess.com"]
[Source "ChessBase"]
[SourceQuality "1"]
[TimeControl "5400+30"]

1. d4 {[%emt 0:00:02]} e6 {[%emt 0:00:08]} 2. c4 {[%emt 0:00:06]} d5 {[%emt 0:00:12]} 3. Nc3 {[%emt 0:00:04]} Nf6 {[%emt 0:00:06]} 4. cxd5 {[%emt 0:00:04]} exd5 {[%emt 0:00:48]} 5. Bg5 {[%emt 0:00:05]} c6 {[%emt 0:00:39]} 6. e3 {[%emt 0:00:05]} Bd6 {[%emt 0:03:54]} 7. Bd3 {[%emt 0:00:20]} Nbd7 {[%emt 0:03:08]} 8. Nge2 {[%emt 0:00:07]} Nf8 {[%emt 0:01:01]} 9. Qc2 {[%emt 0:00:18]} Bg4 {[%emt 0:00:53]} 10. f3 {[%emt 0:01:20]} Bh5 {[%emt 0:00:17]} 11. O-O-O {[%emt 0:00:25]} Bg6 {[%emt 0:00:50]} 12. e4 {[%emt 0:00:23]} Ne6 {[%emt 0:03:29]} 13. Bxf6 {[%emt 0:01:27]} Qxf6 {[%emt 0:00:34]} 14. e5 {[%emt 0:00:12]} Qg5+ {[%emt 0:00:13]} 15. Kb1 {[%emt 0:00:13]} Bc7 {[%emt 0:01:10]} 16. g3 {[%emt 0:00:16]} Qe3 {[%emt 0:07:47]} 17. f4 {[%emt 0:00:52]} Bxd3 {[%emt 0:00:14]} 18. Rxd3 {[%emt 0:00:09]} Qf2 {[%emt 0:00:13]} 19. Rdd1 {[%emt 0:02:32]} Bb6 {[%emt 0:02:36]} 20. Qd3 {[%emt 0:01:34]} a6 {[%emt 0:04:40]} 21. h4 {[%emt 0:00:17]} g6 {[%emt 0:03:11]} 22. Rdf1 {[%emt 0:00:14]} Qg2 {[%emt 0:00:20]} 23. Rfg1 {[%emt 0:00:06]} Qf2 {[%emt 0:03:00]} 24. Nd1 {[%emt 0:00:06]} Nc5 {[%emt 0:00:28]} 25. Nxf2 {[%emt 0:00:12]} 1-0

[Event "Czech Open-E Teams 2022"]
[Site "Pardubice"]
[Date "2022.07.14"]
[Round "1.43"]
[White "Hruska, Pavel"]
[Black "Wasserbauer, Radek"]
[Result "1/2-1/2"]
[ECO "B56"]
[WhiteElo "1894"]
[BlackElo "2164"]
[Annotator "ChessBase"]
[PlyCount "44"]
[EventDate "2022.07.14"]
[EventType "team-tourn"]
[EventCountry "CZE"]
[SourceTitle "playchess.com"]
[Source "ChessBase"]
[SourceQuality "1"]
[TimeControl "5400+30"]

1. e4 {[%emt 0:00:10]} c5 {[%emt 0:00:09]} 2. Nf3 {[%emt 0:00:10]} d6 {[%emt 0:00:06]} 3. d4 {[%emt 0:00:05]} cxd4 {[%emt 0:00:05]} 4. Nxd4 {[%emt 0:00:07]} Nf6 {[%emt 0:00:10]} 5. Nc3 {[%emt 0:00:08]} Nc6 {[%emt 0:00:07]} 6. f3 {[%emt 0:00:52]} e5 {[%emt 0:00:29]} 7. Nde2 {[%emt 0:03:07]} Be7 {[%emt 0:00:41]} 8. Be3 {[%emt 0:00:51]} a6 {[%emt 0:00:06]} 9. Qd2 {[%emt 0:01:52]} b5 {[%emt 0:00:18]} 10. O-O-O {[%emt 0:01:31]} Bd7 {[%emt 0:00:09]} 11. g4 {[%emt 0:01:44]} Qa5 {[%emt 0:01:03]} 12. Kb1 {[%emt 0:02:50]} b4 {[%emt 0:00:21]} 13. Nd5 {[%emt 0:01:41]} Nxd5 {[%emt 0:00:17]} 14. exd5 Nd8 {[%emt 0:12:33]} 15. Ng3 {[%emt 0:00:00]} Bb5 {[%emt 0:08:39]} 16. h4 {[%emt 0:00:00]} Bxf1 {[%emt 0:01:03]} 17. Rhxf1 {[%emt 0:00:00]} Rc8 {[%emt 0:01:19]} 18. h5 {[%emt 0:00:00]} Nb7 {[%emt 0:01:14]} 19. Ne4 {[%emt 0:00:00]} Qb5 {[%emt 0:05:04]} 20. Qd3 {[%emt 0:00:00]} Qxd3 {[%emt 0:01:33]} 21. Rxd3 a5 22. Rb3 Nc5 1/2-1/2

[Event "Czech Open-E Teams 2022"]
[Site "Pardubice"]
[Date "2022.07.14"]
[Round "1.44"]
[White "Urban, Tomas"]
[Black "Miskolczi, Vitezslav"]
[Result "1-0"]
[ECO "A13"]
[WhiteElo "1815"]
[BlackElo "1884"]
[Annotator "NA"]
[PlyCount "65"]
[EventDate "2022.07.14"]
[EventType "team-tourn"]
[EventCountry "CZE"]
[SourceTitle "playchess.com"]
[Source "ChessBase"]
[SourceQuality "1"]
[TimeControl "5400+30"]

1. c4 {[%emt 0:00:10]} e6 {[%emt 0:00:12]} 2. g3 {[%emt 0:00:24]} d5 {[%emt 0:00:17]} 3. cxd5 {[%emt 0:00:28]} exd5 {[%emt 0:00:05]} 4. Bg2 {[%emt 0:00:08]} Nf6 {[%emt 0:00:23]} 5. Nf3 {[%emt 0:00:08]} Bg4 {[%emt 0:00:30]} 6. O-O {[%emt 0:00:12]} Qd7 {[%emt 0:00:09]} 7. Ne5 {[%emt 0:01:13]} Qd8 {[%emt 0:00:06]} 8. Nxg4 {[%emt 0:00:42]} Nxg4 {[%emt 0:00:07]} 9. e4 {[%emt 0:02:45]} Nf6 {[%emt 0:00:29]} 10. exd5 {[%emt 0:00:29]} Nxd5 {[%emt 0:00:14]} 11. Qb3 {[%emt 0:00:48]} c6 {[%emt 0:01:42]} 12. Qxb7 {[%emt 0:00:22]} Nd7 {[%emt 0:00:21]} 13. Qxc6 {[%emt 0:00:20]} N5b6 {[%emt 0:00:59]} 14. Re1+ {[%emt 0:01:46]} Be7 {[%emt 0:00:09]} 15. Qc3 {[%emt 0:02:26]} O-O {[%emt 0:02:41]} 16. Bxa8 {[%emt 0:00:09]} Nxa8 {[%emt 0:00:47]} 17. Qe3 {[%emt 0:00:28]} Bc5 {[%emt 0:00:51]} 18. d4 {[%emt 0:00:30]} Bb6 {[%emt 0:00:46]} 19. Bd2 {[%emt 0:00:49]} Nf6 {[%emt 0:00:25]} 20. Bc3 {[%emt 0:01:16]} Nc7 {[%emt 0:00:53]} 21. Na3 {[%emt 0:00:39]} Re8 {[%emt 0:01:47]} 22. Qd2 {[%emt 0:01:36]} Ne6 23. Rad1 {[%emt 0:00:58]} Qd5 {[%emt 0:04:02]} 24. Re5 {[%emt 0:02:27]} Nxd4 {[%emt 0:05:01]} 25. Rxe8+ {[%emt 0:01:20]} Nxe8 {[%emt 0:00:08]} 26. Bxd4 {[%emt 0:00:16]} Qxa2 {[%emt 0:01:18]} 27. Bxb6 {[%emt 0:00:38]} axb6 {[%emt 0:00:06]} 28. Qd8 {[%emt 0:00:21]} Qe6 {[%emt 0:00:10]} 29. Nc4 {[%emt 0:00:52]} h5 {[%emt 0:01:34]} 30. Nd6 {[%emt 0:00:21]} Kf8 {[%emt 0:01:10]} 31. Nxe8 {[%emt 0:00:15]} Qxe8 {[%emt 0:00:14]} 32. Qxb6 {[%emt 0:00:12]} Qe2 {[%emt 0:00:56]} 33. Rd8+ {[%emt 0:00:49]} 1-0

[Event "Czech Open-E Teams 2022"]
[Site "Pardubice"]
[Date "2022.07.15"]
[Round "2.1"]
[White "Vykouk, Jan"]
[Black "Sott, Pavel"]
[Result "1-0"]
[ECO "B24"]
[WhiteElo "2476"]
[BlackElo "2174"]
[Annotator "ChessBase"]
[PlyCount "71"]
[EventDate "2022.07.14"]
[EventType "team-tourn"]
[EventCountry "CZE"]
[SourceTitle "playchess.com"]
[Source "ChessBase"]
[SourceQuality "1"]
[TimeControl "5400+30"]

1. e4 {[%emt 0:00:03]} c5 {[%emt 0:04:53]} 2. Nc3 {[%emt 0:00:11]} Nc6 {[%emt 0:00:18]} 3. Bb5 {[%emt 0:00:08]} g6 {[%emt 0:00:11]} 4. Bxc6 {[%emt 0:00:10]} dxc6 {[%emt 0:01:08]} 5. f4 {[%emt 0:00:18]} Bg7 {[%emt 0:00:25]} 6. Nf3 {[%emt 0:00:10]} Bg4 {[%emt 0:01:18]} 7. O-O {[%emt 0:01:00]} Nf6 {[%emt 0:01:13]} 8. d3 {[%emt 0:00:15]} O-O {[%emt 0:00:34]} 9. Qe1 {[%emt 0:00:43]} Bxf3 {[%emt 0:01:22]} 10. Rxf3 {[%emt 0:00:07]} c4 {[%emt 0:03:32]} 11. e5 {[%emt 0:07:01]} Ne8 {[%emt 0:01:17]} 12. Be3 {[%emt 0:20:47]} cxd3 {[%emt 0:01:35]} 13. Rd1 {[%emt 0:00:14]} Qa5 {[%emt 0:06:02]} 14. Rxd3 {[%emt 0:00:14]} Nc7 {[%emt 0:01:23]} 15. Qh4 {[%emt 0:06:17]} Rfd8 {[%emt 0:11:04]} 16. Qxe7 {[%emt 0:03:13]} Rxd3 {[%emt 0:00:51]} 17. cxd3 {[%emt 0:00:05]} Nd5 {[%emt 0:03:31]} 18. Qxb7 {[%emt 0:06:44]} Rd8 {[%emt 0:00:58]} 19. Qxa7 {[%emt 0:01:15]} Qb4 {[%emt 0:00:23]} 20. Qd4 {[%emt 0:10:00]} Qa5 {[%emt 0:06:40]} 21. Qc5 {[%emt 0:01:31]} Qa6 {[%emt 0:02:13]} 22. Nxd5 {[%emt 0:00:49]} Rxd5 {[%emt 0:00:39]} 23. Qc4 {[%emt 0:00:10]} Qa5 {[%emt 0:01:02]} 24. Rf1 {[%emt 0:00:27]} Bf8 {[%emt 0:00:28]} 25. d4 {[%emt 0:00:40]} Rb5 {[%emt 0:00:48]} 26. e6 {[%emt 0:03:42]} Rxb2 {[%emt 0:05:29]} 27. exf7+ {[%emt 0:00:08]} Kg7 {[%emt 0:00:05]} 28. d5 {[%emt 0:02:21]} Rb4 {[%emt 0:00:24]} 29. Qc3+ {[%emt 0:00:58]} Kxf7 {[%emt 0:00:12]} 30. dxc6 {[%emt 0:01:11]} Bd6 {[%emt 0:07:18]} 31. Qh8 {[%emt 0:07:13]} Re4 {[%emt 0:05:11]} 32. Qxh7+ {[%emt 0:00:14]} Kf6 {[%emt 0:00:22]} 33. f5 {[%emt 0:02:20]} gxf5 {[%emt 0:00:07]} 34. Qh6+ {[%emt 0:00:09]} Kf7 {[%emt 0:01:23]} 35. Qxd6 {[%emt 0:00:16]} Rxe3 {[%emt 0:00:05]} 36. c7 {[%emt 0:02:06]} 1-0